[Event "*** SCC Grand Prix: Titled Tuesday Blitz"]
[Site "Chess.com"]
[Date "2020.06.02"]
[Round "3"]
[White "HonzaVykouk"]
[Black "exoticprincess"]
[Result "1-0"]
[WhiteElo "2637"]
[BlackElo "2802"]
[TimeControl "180+1"]
[EndTime "10:28:22 PDT"]
[Termination "HonzaVykouk won by resignation"]

1. e4 {[%clk 0:03:00.9]} 1... c6 {[%clk 0:03:00.3]} 2. Nf3 {[%clk 0:02:59.7]}
2... d5 {[%clk 0:03:01.2]} 3. Nc3 {[%clk 0:02:55.5]} 3... dxe4 {[%clk
0:03:02.1]} 4. Nxe4 {[%clk 0:02:55.9]} 4... Bg4 {[%clk 0:02:57.3]} 5. h3 {[%clk
0:02:53.9]} 5... Bxf3 {[%clk 0:02:57.2]} 6. Qxf3 {[%clk 0:02:50.8]} 6... e6
{[%clk 0:02:58.1]} 7. c3 {[%clk 0:02:42.4]} 7... Nf6 {[%clk 0:02:57.5]} 8. d4
{[%clk 0:02:38]} 8... Nbd7 {[%clk 0:02:56.9]} 9. Bd3 {[%clk 0:02:33.3]} 9...
Nxe4 {[%clk 0:02:56.4]} 10. Qxe4 {[%clk 0:02:31.7]} 10... Nf6 {[%clk 0:02:57.3]}
11. Qe2 {[%clk 0:02:32]} 11... Qc7 {[%clk 0:02:57.4]} 12. O-O {[%clk 0:02:29.4]}
12... Bd6 {[%clk 0:02:57.6]} 13. f4 {[%clk 0:02:29.3]} 13... O-O-O {[%clk
0:02:56.5]} 14. b4 {[%clk 0:02:28]} 14... h5 {[%clk 0:02:55.4]} 15. Bd2 {[%clk
0:02:25.4]} 15... h4 {[%clk 0:02:55.6]} 16. a4 {[%clk 0:02:23.5]} 16... Nh5
{[%clk 0:02:55.6]} 17. Qf3 {[%clk 0:02:16]} 17... g6 {[%clk 0:02:56]} 18. b5
{[%clk 0:02:14.5]} 18... c5 {[%clk 0:02:55.7]} 19. a5 {[%clk 0:02:11.5]} 19...
Qe7 {[%clk 0:02:51.7]} 20. a6 {[%clk 0:02:08.4]} 20... b6 {[%clk 0:02:49.9]} 21.
Qa8+ {[%clk 0:02:04.1]} 21... Bb8 {[%clk 0:02:50.1]} 22. Be4 {[%clk 0:02:01]}
22... Ng3 {[%clk 0:02:48.2]} 23. Bb7+ {[%clk 0:01:49.6]} 23... Kc7 {[%clk
0:02:48.4]} 24. f5 {[%clk 0:01:44.5]} 24... gxf5 {[%clk 0:02:43]} 25. Bf4+
{[%clk 0:01:42.7]} 25... Rd6 {[%clk 0:02:43.4]} 26. Bc6 {[%clk 0:01:35.3]} 26...
Kc8 {[%clk 0:02:37.6]} 27. dxc5 {[%clk 0:01:11]} 27... Ne2+ {[%clk 0:02:35.2]}
28. Kh1 {[%clk 0:01:09.2]} 28... Nxf4 {[%clk 0:02:36.1]} 29. Qb7+ {[%clk
0:00:53]} 29... Qxb7 {[%clk 0:02:32]} 30. axb7+ {[%clk 0:00:53.9]} 30... Kd8
{[%clk 0:02:30.8]} 31. cxd6 {[%clk 0:00:49.3]} 31... Ne2 {[%clk 0:02:31]} 32.
Rf3 {[%clk 0:00:41.7]} 32... Rg8 {[%clk 0:02:25.8]} 33. Rd3 {[%clk 0:00:30]}
33... Nf4 {[%clk 0:02:15.8]} 34. Rd4 {[%clk 0:00:25.9]} 34... Ne2 {[%clk
0:02:14.4]} 35. Rxh4 {[%clk 0:00:24.3]} 35... Nxc3 {[%clk 0:02:13.7]} 36. Rh7
{[%clk 0:00:22.2]} 36... Rf8 {[%clk 0:02:12.9]} 37. h4 {[%clk 0:00:21]} 37...
Ne2 {[%clk 0:02:12.9]} 38. h5 {[%clk 0:00:20.5]} 38... Ng3+ {[%clk 0:02:12]} 39.
Kg1 {[%clk 0:00:19.5]} 39... Ne4 {[%clk 0:02:05.3]} 40. d7 {[%clk 0:00:16.5]}
40... Nf6 {[%clk 0:02:02.1]} 41. Rh6 {[%clk 0:00:15.5]} 41... Ke7 {[%clk
0:02:02.5]} 42. Rd1 {[%clk 0:00:14.4]} 42... Rd8 {[%clk 0:02:02.8]} 43. Kf1
{[%clk 0:00:11.7]} 43... Bf4 {[%clk 0:02:02.7]} 44. Rxf6 {[%clk 0:00:08.8]}
44... Kxf6 {[%clk 0:02:03.6]} 45. Ra1 {[%clk 0:00:08.8]} 45... Bb8 {[%clk
0:02:03.8]} 46. Ke2 {[%clk 0:00:08.8]} 46... Rh8 {[%clk 0:02:04.1]} 47. Rh1
{[%clk 0:00:09.3]} 47... Bc7 {[%clk 0:01:59.8]} 48. h6 {[%clk 0:00:10.2]} 48...
Ke7 {[%clk 0:01:53.5]} 49. h7 {[%clk 0:00:11.1]} 49... Bb8 {[%clk 0:01:53.6]}
50. Kf3 {[%clk 0:00:11]} 50... Kd8 {[%clk 0:01:53.7]} 51. g4 {[%clk 0:00:11.7]}
51... fxg4+ {[%clk 0:01:53.4]} 52. Kxg4 {[%clk 0:00:12.6]} 52... f5+ {[%clk
0:01:53.3]} 53. Kg5 {[%clk 0:00:12.7]} 53... Ke7 {[%clk 0:01:52.3]} 54. Kg6
{[%clk 0:00:13]} 54... Bc7 {[%clk 0:01:52]} 55. Re1 {[%clk 0:00:11.3]} 55... Kd6
{[%clk 0:01:47.1]} 56. Kg7 {[%clk 0:00:10.7]} 56... Rd8 {[%clk 0:01:46]} 57.
h8=Q {[%clk 0:00:10.7]} 57... Rxh8 {[%clk 0:01:46.6]} 58. Kxh8 {[%clk
0:00:11.6]} 58... a5 {[%clk 0:01:47.1]} 59. bxa6 {[%clk 0:00:10.9]} 59... Kxc6
{[%clk 0:01:47.4]} 60. Rd1 {[%clk 0:00:10.9]} 1-0

[Event "*** SCC Grand Prix: Titled Tuesday Blitz"]
[Site "Chess.com"]
[Date "2020.06.02"]
[Round "3"]
[White "ChEsper99"]
[Black "mjray79"]
[Result "0-1"]
[WhiteElo "2051"]
[BlackElo "2303"]
[TimeControl "180+1"]
[EndTime "10:28:23 PDT"]
[Termination "mjray79 won on time"]

1. e4 {[%clk 0:03:00.9]} 1... e5 {[%clk 0:02:59.9]} 2. Nf3 {[%clk 0:03:00.1]}
2... Nc6 {[%clk 0:03:00.3]} 3. d4 {[%clk 0:02:58.3]} 3... exd4 {[%clk
0:02:59.7]} 4. Nxd4 {[%clk 0:02:59.2]} 4... Nf6 {[%clk 0:02:59.7]} 5. Nxc6
{[%clk 0:02:58.1]} 5... bxc6 {[%clk 0:03:00.6]} 6. Qe2 {[%clk 0:02:58.9]} 6...
Qe7 {[%clk 0:02:59.2]} 7. Nc3 {[%clk 0:02:59.1]} 7... d5 {[%clk 0:02:55.7]} 8.
exd5 {[%clk 0:03:00]} 8... cxd5 {[%clk 0:02:56]} 9. Nb5 {[%clk 0:02:53.7]} 9...
Be6 {[%clk 0:02:41.2]} 10. Bf4 {[%clk 0:02:44]} 10... Qb4+ {[%clk 0:02:17.7]}
11. Bd2 {[%clk 0:02:31.2]} 11... Qc5 {[%clk 0:02:13.5]} 12. Bf4 {[%clk
0:02:11.7]} 12... Rc8 {[%clk 0:02:05.5]} 13. O-O-O {[%clk 0:02:06.2]} 13... Be7
{[%clk 0:01:59.7]} 14. Nd4 {[%clk 0:02:05.8]} 14... Bd7 {[%clk 0:01:47.4]} 15.
Nb3 {[%clk 0:01:36.2]} 15... Qb4 {[%clk 0:01:41.9]} 16. Bd2 {[%clk 0:01:29.4]}
16... Qd6 {[%clk 0:01:38.6]} 17. Re1 {[%clk 0:01:28]} 17... Ne4 {[%clk
0:01:12.3]} 18. Be3 {[%clk 0:00:59.6]} 18... c5 {[%clk 0:00:51.7]} 19. f3 {[%clk
0:00:58.2]} 19... Nf6 {[%clk 0:00:51.2]} 20. Kb1 {[%clk 0:00:36.6]} 20... O-O
{[%clk 0:00:47.5]} 21. Bxc5 {[%clk 0:00:36.3]} 21... Rxc5 {[%clk 0:00:46.1]} 22.
Nxc5 {[%clk 0:00:36.1]} 22... Qxc5 {[%clk 0:00:46.4]} 23. Qxe7 {[%clk
0:00:36.3]} 23... Re8 {[%clk 0:00:46.8]} 24. Qxe8+ {[%clk 0:00:03.9]} 24... Bxe8
{[%clk 0:00:47.7]} 25. Bd3 {[%clk 0:00:03.5]} 25... g6 {[%clk 0:00:48.1]} 26.
Re2 {[%clk 0:00:02.9]} 26... Kg7 {[%clk 0:00:47.7]} 27. Rhe1 {[%clk 0:00:02.8]}
27... Bb5 {[%clk 0:00:46.8]} 28. Bxb5 {[%clk 0:00:02]} 28... Qxb5 {[%clk
0:00:47.7]} 29. b3 {[%clk 0:00:02.3]} 29... a5 {[%clk 0:00:43.1]} 30. a4 {[%clk
0:00:02.4]} 30... Qb4 {[%clk 0:00:40]} 31. Rd1 {[%clk 0:00:02.7]} 31... d4
{[%clk 0:00:36.9]} 32. Red2 {[%clk 0:00:03.2]} 32... Nd5 {[%clk 0:00:36.4]} 0-1

[Event "*** SCC Grand Prix: Titled Tuesday Blitz"]
[Site "Chess.com"]
[Date "2020.06.02"]
[Round "3"]
[White "neurisdr"]
[Black "CaspiIsrael"]
[Result "1/2-1/2"]
[WhiteElo "2766"]
[BlackElo "2594"]
[TimeControl "180+1"]
[EndTime "10:28:24 PDT"]
[Termination "Game drawn by stalemate"]

1. e4 {[%clk 0:03:00.9]} 1... e5 {[%clk 0:02:57]} 2. Nf3 {[%clk 0:03:00.6]} 2...
Nc6 {[%clk 0:02:51.4]} 3. Bb5 {[%clk 0:02:59.5]} 3... g6 {[%clk 0:02:51]} 4.
Bxc6 {[%clk 0:02:59.1]} 4... dxc6 {[%clk 0:02:50]} 5. d3 {[%clk 0:02:59.6]} 5...
Bg7 {[%clk 0:02:43.5]} 6. Nbd2 {[%clk 0:03:00]} 6... Qe7 {[%clk 0:02:10]} 7. Nc4
{[%clk 0:02:54.3]} 7... f6 {[%clk 0:02:09.2]} 8. b3 {[%clk 0:02:51.8]} 8... Nh6
{[%clk 0:02:08.2]} 9. Ba3 {[%clk 0:02:50.9]} 9... c5 {[%clk 0:02:02.2]} 10. Ne3
{[%clk 0:02:51.4]} 10... c6 {[%clk 0:01:59.3]} 11. Qd2 {[%clk 0:02:49.1]} 11...
b6 {[%clk 0:01:57.4]} 12. b4 {[%clk 0:02:46]} 12... cxb4 {[%clk 0:01:49.7]} 13.
Bxb4 {[%clk 0:02:44.8]} 13... c5 {[%clk 0:01:47.9]} 14. Ba3 {[%clk 0:02:44.4]}
14... Bb7 {[%clk 0:01:47.7]} 15. c4 {[%clk 0:02:43.5]} 15... O-O {[%clk
0:01:45.1]} 16. Nd5 {[%clk 0:02:43]} 16... Qd6 {[%clk 0:01:43.2]} 17. O-O {[%clk
0:02:41.3]} 17... Nf7 {[%clk 0:01:42.7]} 18. Rab1 {[%clk 0:02:40.4]} 18... Nd8
{[%clk 0:01:42.5]} 19. Qe3 {[%clk 0:02:35.5]} 19... Ne6 {[%clk 0:01:42]} 20. Nd2
{[%clk 0:02:32.8]} 20... Bc6 {[%clk 0:01:40.9]} 21. Nb3 {[%clk 0:02:28.6]} 21...
f5 {[%clk 0:01:38.8]} 22. exf5 {[%clk 0:02:25.6]} 22... gxf5 {[%clk 0:01:38.6]}
23. f4 {[%clk 0:02:21.5]} 23... Bxd5 {[%clk 0:01:19.5]} 24. fxe5 {[%clk
0:02:16.7]} 24... Qxe5 {[%clk 0:01:18.9]} 25. Qxe5 {[%clk 0:02:15]} 25... Bxe5
{[%clk 0:01:19.8]} 26. cxd5 {[%clk 0:02:15]} 26... Nd4 {[%clk 0:01:20]} 27. Rbe1
{[%clk 0:02:09.1]} 27... Rae8 {[%clk 0:01:08.3]} 28. Rxe5 {[%clk 0:01:59.1]}
28... Rxe5 {[%clk 0:01:03.4]} 29. Nxd4 {[%clk 0:01:59.5]} 29... cxd4 {[%clk
0:01:02.9]} 30. Bxf8 {[%clk 0:02:00]} 30... Kxf8 {[%clk 0:01:03.8]} 31. Rc1
{[%clk 0:02:00]} 31... Rxd5 {[%clk 0:00:58.9]} 32. Rc8+ {[%clk 0:01:59.5]} 32...
Ke7 {[%clk 0:00:58.5]} 33. Rh8 {[%clk 0:01:58.8]} 33... Ra5 {[%clk 0:00:57.5]}
34. Rxh7+ {[%clk 0:01:58.5]} 34... Ke6 {[%clk 0:00:57.6]} 35. h4 {[%clk
0:01:54]} 35... Rxa2 {[%clk 0:00:57.3]} 36. h5 {[%clk 0:01:54.6]} 36... Kf6
{[%clk 0:00:57.6]} 37. Rd7 {[%clk 0:01:53.4]} 37... Kg5 {[%clk 0:00:57.4]} 38.
Rd5 {[%clk 0:01:50.6]} 38... Rd2 {[%clk 0:00:55.1]} 39. g4 {[%clk 0:01:50.5]}
39... Rxd3 {[%clk 0:00:48.9]} 40. Rxf5+ {[%clk 0:01:37.1]} 40... Kxg4 {[%clk
0:00:48.7]} 41. Rf7 {[%clk 0:01:37.7]} 41... Kxh5 {[%clk 0:00:38.2]} 42. Rxa7
{[%clk 0:01:37.1]} 42... Rb3 {[%clk 0:00:37.4]} 43. Rd7 {[%clk 0:01:36]} 43...
d3 {[%clk 0:00:37.4]} 44. Kf2 {[%clk 0:01:35.3]} 44... Kg5 {[%clk 0:00:36.4]}
45. Ke3 {[%clk 0:01:35.6]} 45... Kf5 {[%clk 0:00:35.6]} 46. Rd8 {[%clk
0:01:35.5]} 46... Ke5 {[%clk 0:00:35.5]} 47. Rd7 {[%clk 0:01:35.4]} 47... Ke6
{[%clk 0:00:31.7]} 48. Rd8 {[%clk 0:01:35.3]} 48... Ke7 {[%clk 0:00:31.1]} 49.
Rxd3 {[%clk 0:01:33.7]} 49... Rxd3+ {[%clk 0:00:29.6]} 50. Kxd3 {[%clk
0:01:33.3]} 50... Kd6 {[%clk 0:00:29.9]} 51. Kc4 {[%clk 0:01:33.2]} 51... Kc6
{[%clk 0:00:30]} 52. Kb4 {[%clk 0:01:33]} 52... Kc7 {[%clk 0:00:28.1]} 53. Kb5
{[%clk 0:01:33]} 53... Kb7 {[%clk 0:00:28.3]} 54. Kb4 {[%clk 0:01:33.4]} 54...
Kc6 {[%clk 0:00:29.2]} 55. Kc4 {[%clk 0:01:33.4]} 55... b5+ {[%clk 0:00:29.7]}
56. Kb4 {[%clk 0:01:33.9]} 56... Kb6 {[%clk 0:00:30.6]} 57. Kb3 {[%clk 0:01:34]}
57... Kc6 {[%clk 0:00:31.5]} 58. Kb4 {[%clk 0:01:33.9]} 58... Kb6 {[%clk
0:00:32.4]} 59. Kb3 {[%clk 0:01:34.2]} 59... Kc5 {[%clk 0:00:33.3]} 60. Kc3
{[%clk 0:01:34.3]} 60... b4+ {[%clk 0:00:33.6]} 61. Kb3 {[%clk 0:01:34.8]} 61...
Kb5 {[%clk 0:00:34.5]} 62. Kb2 {[%clk 0:01:35.2]} 62... Kc4 {[%clk 0:00:35.4]}
63. Kc2 {[%clk 0:01:35]} 63... Kd4 {[%clk 0:00:35.9]} 64. Kb3 {[%clk 0:01:35.1]}
64... Kc5 {[%clk 0:00:36.8]} 65. Kb2 {[%clk 0:01:35.2]} 65... Kc4 {[%clk
0:00:37.7]} 66. Kc2 {[%clk 0:01:35.2]} 66... b3+ {[%clk 0:00:38]} 67. Kb2 {[%clk
0:01:35.7]} 67... Kb4 {[%clk 0:00:38]} 68. Kb1 {[%clk 0:01:35.8]} 68... Ka3
{[%clk 0:00:38.9]} 69. Ka1 {[%clk 0:01:35.9]} 69... Kb4 {[%clk 0:00:39]} 70. Kb2
{[%clk 0:01:35.8]} 70... Kc4 {[%clk 0:00:39.6]} 71. Kb1 {[%clk 0:01:36]} 71...
Kc3 {[%clk 0:00:40.5]} 72. Kc1 {[%clk 0:01:35.9]} 72... b2+ {[%clk 0:00:40.3]}
73. Kb1 {[%clk 0:01:35.8]} 73... Kb3 {[%clk 0:00:41.2]} 1/2-1/2

[Event "*** SCC Grand Prix: Titled Tuesday Blitz"]
[Site "Chess.com"]
[Date "2020.06.02"]
[Round "3"]
[White "Baby_Shak"]
[Black "Marty435"]
[Result "1-0"]
[WhiteElo "2639"]
[BlackElo "2435"]
[TimeControl "180+1"]
[EndTime "10:28:24 PDT"]
[Termination "Baby_Shak won by checkmate"]

1. d4 {[%clk 0:03:00.9]} 1... d5 {[%clk 0:02:59.3]} 2. Bf4 {[%clk 0:03:00.4]}
2... c5 {[%clk 0:02:56.8]} 3. e3 {[%clk 0:02:59.2]} 3... Nc6 {[%clk 0:02:56.6]}
4. c3 {[%clk 0:02:54.2]} 4... Nf6 {[%clk 0:02:53.9]} 5. Nd2 {[%clk 0:02:51]}
5... e6 {[%clk 0:02:49.5]} 6. Ngf3 {[%clk 0:02:47.1]} 6... Bd6 {[%clk
0:02:46.4]} 7. Bg3 {[%clk 0:02:46.4]} 7... O-O {[%clk 0:02:42.8]} 8. Bd3 {[%clk
0:02:45.8]} 8... b6 {[%clk 0:02:38.6]} 9. Qe2 {[%clk 0:02:44.8]} 9... Bb7 {[%clk
0:02:35.3]} 10. Rd1 {[%clk 0:02:42.6]} 10... Rc8 {[%clk 0:02:22.9]} 11. e4
{[%clk 0:02:30.4]} 11... Be7 {[%clk 0:02:19.7]} 12. e5 {[%clk 0:02:27.8]} 12...
Nh5 {[%clk 0:02:18.2]} 13. Ng5 {[%clk 0:02:22.8]} 13... Bxg5 {[%clk 0:02:06.7]}
14. Qxh5 {[%clk 0:02:21.3]} 14... g6 {[%clk 0:02:05.3]} 15. Qe2 {[%clk
0:02:09.9]} 15... cxd4 {[%clk 0:02:04.4]} 16. h4 {[%clk 0:02:09.3]} 16... Bxd2+
{[%clk 0:01:46.3]} 17. Qxd2 {[%clk 0:02:10.2]} 17... dxc3 {[%clk 0:01:46.7]} 18.
bxc3 {[%clk 0:02:08.7]} 18... h5 {[%clk 0:01:36.9]} 19. Bf4 {[%clk 0:01:57.3]}
19... d4 {[%clk 0:01:31.8]} 20. c4 {[%clk 0:01:49.2]} 20... Na5 {[%clk
0:01:18.6]} 21. Bg5 {[%clk 0:01:48.1]} 21... f6 {[%clk 0:00:58]} 22. exf6 {[%clk
0:01:46.8]} 22... Qe8 {[%clk 0:00:50.2]} 23. O-O {[%clk 0:01:41.1]} 23... Nxc4
{[%clk 0:00:45.2]} 24. Qe2 {[%clk 0:01:37.3]} 24... Nd6 {[%clk 0:00:40.5]} 25.
Rfe1 {[%clk 0:01:26.3]} 25... Bd5 {[%clk 0:00:20.3]} 26. Qe5 {[%clk 0:01:19.8]}
26... Nf5 {[%clk 0:00:13.9]} 27. Bxf5 {[%clk 0:01:18.5]} 27... gxf5 {[%clk
0:00:14.6]} 28. Rxd4 {[%clk 0:01:17.2]} 28... Qg6 {[%clk 0:00:11.4]} 29. Rd3
{[%clk 0:01:12.1]} 29... Kh7 {[%clk 0:00:09.6]} 30. Rg3 {[%clk 0:01:11.2]} 30...
Qf7 {[%clk 0:00:09]} 31. Bh6 {[%clk 0:00:51.6]} 31... Rg8 {[%clk 0:00:09]} 32.
Bg7 {[%clk 0:00:50.4]} 32... Rc4 {[%clk 0:00:05.9]} 33. Qe3 {[%clk 0:00:44.2]}
33... f4 {[%clk 0:00:02.6]} 34. Qd3+ {[%clk 0:00:43.8]} 34... Re4 {[%clk
0:00:02.1]} 35. Rxe4 {[%clk 0:00:43.4]} 35... Bxe4 {[%clk 0:00:01.4]} 36. Qxe4+
{[%clk 0:00:43]} 36... Qg6 {[%clk 0:00:02]} 37. Qxg6# {[%clk 0:00:42.8]} 1-0

[Event "*** SCC Grand Prix: Titled Tuesday Blitz"]
[Site "Chess.com"]
[Date "2020.06.02"]
[Round "3"]
[White "Pultis"]
[Black "guillembaches"]
[Result "1-0"]
[WhiteElo "2771"]
[BlackElo "2439"]
[TimeControl "180+1"]
[EndTime "10:28:26 PDT"]
[Termination "Pultis won by checkmate"]

1. d4 {[%clk 0:03:00.9]} 1... Nf6 {[%clk 0:02:56.2]} 2. Nf3 {[%clk 0:03:01.8]}
2... e6 {[%clk 0:02:56.2]} 3. Bg5 {[%clk 0:03:01.8]} 3... h6 {[%clk 0:02:55.3]}
4. Bxf6 {[%clk 0:03:01.7]} 4... Qxf6 {[%clk 0:02:55]} 5. e4 {[%clk 0:03:02.4]}
5... d5 {[%clk 0:02:54.9]} 6. Nc3 {[%clk 0:03:00.7]} 6... Bb4 {[%clk 0:02:54.1]}
7. e5 {[%clk 0:02:58.4]} 7... Qd8 {[%clk 0:02:50.8]} 8. Qd2 {[%clk 0:02:54.5]}
8... b6 {[%clk 0:02:45.4]} 9. a3 {[%clk 0:02:54.3]} 9... Be7 {[%clk 0:02:42.5]}
10. h4 {[%clk 0:02:48.1]} 10... Qd7 {[%clk 0:02:27]} 11. h5 {[%clk 0:02:42.5]}
11... Nc6 {[%clk 0:02:21.4]} 12. g4 {[%clk 0:02:33.4]} 12... Bb7 {[%clk
0:02:20.1]} 13. Bb5 {[%clk 0:02:21.7]} 13... a6 {[%clk 0:02:11.8]} 14. Bd3
{[%clk 0:02:21.6]} 14... Na5 {[%clk 0:02:09]} 15. O-O-O {[%clk 0:01:58.4]} 15...
Nc4 {[%clk 0:01:58.3]} 16. Bxc4 {[%clk 0:01:54.8]} 16... dxc4 {[%clk 0:01:59.2]}
17. d5 {[%clk 0:01:55.7]} 17... exd5 {[%clk 0:01:49.5]} 18. Nxd5 {[%clk
0:01:56.6]} 18... O-O-O {[%clk 0:01:35.9]} 19. Nxe7+ {[%clk 0:01:37.9]} 19...
Qxe7 {[%clk 0:01:36.8]} 20. Qf4 {[%clk 0:01:37]} 20... c3 {[%clk 0:01:32.6]} 21.
Rhe1 {[%clk 0:01:12.5]} 21... cxb2+ {[%clk 0:01:18]} 22. Kxb2 {[%clk 0:01:13.4]}
22... Bd5 {[%clk 0:01:17.6]} 23. Nd4 {[%clk 0:00:58.9]} 23... Qc5 {[%clk
0:01:09]} 24. Re3 {[%clk 0:00:51.1]} 24... Qc4 {[%clk 0:00:58.9]} 25. Rb3 {[%clk
0:00:33.5]} 25... Be6 {[%clk 0:00:48.7]} 26. Rdd3 {[%clk 0:00:25.7]} 26... Bd5
{[%clk 0:00:34.2]} 27. Rdc3 {[%clk 0:00:23.9]} 27... Qa4 {[%clk 0:00:27.7]} 28.
e6 {[%clk 0:00:13.4]} 28... c5 {[%clk 0:00:25.5]} 29. Rxb6 {[%clk 0:00:11.1]}
29... fxe6 {[%clk 0:00:22.1]} 30. Rxc5+ {[%clk 0:00:09.1]} 30... Kd7 {[%clk
0:00:22.4]} 31. Qf7# {[%clk 0:00:08.6]} 1-0

[Event "*** SCC Grand Prix: Titled Tuesday Blitz"]
[Site "Chess.com"]
[Date "2020.06.02"]
[Round "3"]
[White "Arek_pacitan"]
[Black "TrenerChos"]
[Result "1-0"]
[WhiteElo "2547"]
[BlackElo "2353"]
[TimeControl "180+1"]
[EndTime "10:28:29 PDT"]
[Termination "Arek_pacitan won on time"]

1. Nf3 {[%clk 0:03:00.9]} 1... d6 {[%clk 0:02:57.2]} 2. c4 {[%clk 0:02:56.5]}
2... e5 {[%clk 0:02:56]} 3. Nc3 {[%clk 0:02:56.4]} 3... Nd7 {[%clk 0:02:54.8]}
4. d4 {[%clk 0:02:55.2]} 4... c6 {[%clk 0:02:49.5]} 5. g3 {[%clk 0:02:49.8]}
5... Be7 {[%clk 0:02:48.2]} 6. Bg2 {[%clk 0:02:50.1]} 6... f5 {[%clk 0:02:47.3]}
7. dxe5 {[%clk 0:02:44.1]} 7... dxe5 {[%clk 0:02:44.3]} 8. e4 {[%clk 0:02:43.8]}
8... fxe4 {[%clk 0:02:37.2]} 9. Nxe4 {[%clk 0:02:44.7]} 9... Ngf6 {[%clk
0:02:28.4]} 10. Nd6+ {[%clk 0:02:34.7]} 10... Bxd6 {[%clk 0:02:25.4]} 11. Qxd6
{[%clk 0:02:35.6]} 11... Qe7 {[%clk 0:02:16.4]} 12. Qxe7+ {[%clk 0:02:35.5]}
12... Kxe7 {[%clk 0:02:16.4]} 13. O-O {[%clk 0:02:36.4]} 13... Re8 {[%clk
0:02:15.9]} 14. b3 {[%clk 0:02:32]} 14... Kf8 {[%clk 0:02:14]} 15. Bb2 {[%clk
0:02:30]} 15... e4 {[%clk 0:02:13.5]} 16. Nd2 {[%clk 0:02:21.1]} 16... Nc5
{[%clk 0:02:09.2]} 17. Ba3 {[%clk 0:02:20.8]} 17... b6 {[%clk 0:02:08]} 18. Rfe1
{[%clk 0:01:59.9]} 18... Bf5 {[%clk 0:02:07.4]} 19. f3 {[%clk 0:01:44.7]} 19...
e3 {[%clk 0:01:46.8]} 20. Nf1 {[%clk 0:01:30.3]} 20... e2 {[%clk 0:01:46]} 21.
Nd2 {[%clk 0:01:30.6]} 21... Rad8 {[%clk 0:01:43.3]} 22. Ne4 {[%clk 0:01:23.1]}
22... Bxe4 {[%clk 0:01:23.5]} 23. fxe4 {[%clk 0:01:24]} 23... Rd2 {[%clk
0:01:23.5]} 24. Bf3 {[%clk 0:01:06.9]} 24... Nxe4 {[%clk 0:01:13.8]} 25. Rxe2
{[%clk 0:01:06.8]} 25... Rxe2 {[%clk 0:01:12.5]} 26. Bxe2 {[%clk 0:01:07.7]}
26... Nxg3 {[%clk 0:01:07]} 27. Bf3 {[%clk 0:01:07.7]} 27... Ne4 {[%clk
0:01:03.1]} 28. Re1 {[%clk 0:01:02.3]} 28... Kf7 {[%clk 0:00:46.1]} 29. b4
{[%clk 0:00:43.9]} 29... Ng5 {[%clk 0:00:28.2]} 30. Rf1 {[%clk 0:00:38.6]} 30...
Nce4 {[%clk 0:00:03.3]} 31. Bxe4+ {[%clk 0:00:36.5]} 31... Ke6 {[%clk
0:00:01.5]} 32. Bxc6 {[%clk 0:00:36.3]} 32... Rd8 {[%clk 0:00:01.7]} 33. Bd5+
{[%clk 0:00:36.7]} 33... Ke5 {[%clk 0:00:01.4]} 34. Bb2+ {[%clk 0:00:36.1]} 1-0

[Event "*** SCC Grand Prix: Titled Tuesday Blitz"]
[Site "Chess.com"]
[Date "2020.06.02"]
[Round "3"]
[White "Superfelix"]
[Black "MilanJeremic"]
[Result "1-0"]
[WhiteElo "2491"]
[BlackElo "2249"]
[TimeControl "180+1"]
[EndTime "10:28:29 PDT"]
[Termination "Superfelix won by resignation"]

1. e4 {[%clk 0:03:00.9]} 1... c6 {[%clk 0:02:59.3]} 2. Nc3 {[%clk 0:03:00]} 2...
d5 {[%clk 0:02:58.6]} 3. Qe2 {[%clk 0:03:00.6]} 3... a6 {[%clk 0:02:56.7]} 4. g3
{[%clk 0:02:59.1]} 4... d4 {[%clk 0:02:55.4]} 5. Nd1 {[%clk 0:02:59]} 5... e5
{[%clk 0:02:54.8]} 6. d3 {[%clk 0:02:59.3]} 6... Nf6 {[%clk 0:02:53.5]} 7. f4
{[%clk 0:02:59.4]} 7... Bd6 {[%clk 0:02:51.2]} 8. Nf3 {[%clk 0:02:59.5]} 8...
Bg4 {[%clk 0:02:47.1]} 9. Bg2 {[%clk 0:02:59.5]} 9... c5 {[%clk 0:02:45.7]} 10.
Nf2 {[%clk 0:02:59.6]} 10... Bxf3 {[%clk 0:02:43.6]} 11. Bxf3 {[%clk 0:03:00.5]}
11... Nc6 {[%clk 0:02:42.1]} 12. O-O {[%clk 0:02:59.5]} 12... Qc7 {[%clk
0:02:40.9]} 13. f5 {[%clk 0:02:57.6]} 13... h5 {[%clk 0:02:37.1]} 14. Bg5 {[%clk
0:02:54.3]} 14... h4 {[%clk 0:02:33.5]} 15. Kg2 {[%clk 0:02:43.7]} 15... hxg3
{[%clk 0:02:30.5]} 16. hxg3 {[%clk 0:02:44.6]} 16... O-O-O {[%clk 0:02:29]} 17.
Rh1 {[%clk 0:02:43.4]} 17... Be7 {[%clk 0:02:28.1]} 18. a3 {[%clk 0:02:41.8]}
18... Nd7 {[%clk 0:02:18.6]} 19. Bd2 {[%clk 0:02:33.6]} 19... Kb8 {[%clk
0:02:15.2]} 20. Rab1 {[%clk 0:02:31.8]} 20... Qc8 {[%clk 0:02:02.3]} 21. Nh3
{[%clk 0:02:22]} 21... Ka8 {[%clk 0:01:54.7]} 22. Ng5 {[%clk 0:02:21.3]} 22...
Bxg5 {[%clk 0:01:44.8]} 23. Bxg5 {[%clk 0:02:22.2]} 23... f6 {[%clk 0:01:44.6]}
24. Bd2 {[%clk 0:02:22.1]} 24... Rxh1 {[%clk 0:01:42.4]} 25. Rxh1 {[%clk
0:02:20.9]} 25... Rh8 {[%clk 0:01:41.9]} 26. Qd1 {[%clk 0:02:19.7]} 26... Qg8
{[%clk 0:01:38.1]} 27. Rxh8 {[%clk 0:02:11.8]} 27... Qxh8 {[%clk 0:01:37.2]} 28.
Bh5 {[%clk 0:02:03.8]} 28... Qg8 {[%clk 0:01:25.9]} 29. b3 {[%clk 0:02:02.2]}
29... b6 {[%clk 0:01:10.8]} 30. Qg4 {[%clk 0:02:01.4]} 30... Kb7 {[%clk
0:01:08.8]} 31. Qg6 {[%clk 0:02:01.3]} 31... Kc7 {[%clk 0:01:05.6]} 32. Qf7
{[%clk 0:01:58.4]} 32... Qxf7 {[%clk 0:01:04.7]} 33. Bxf7 {[%clk 0:01:59.3]}
33... Nd8 {[%clk 0:00:58.6]} 34. Bd5 {[%clk 0:01:59.1]} 34... b5 {[%clk
0:00:56.2]} 35. Ba5+ {[%clk 0:01:59]} 35... Nb6 {[%clk 0:00:52]} 36. Kf3 {[%clk
0:01:56.4]} 36... Nc6 {[%clk 0:00:51.5]} 37. Bxb6+ {[%clk 0:01:50.3]} 37... Kxb6
{[%clk 0:00:50.1]} 38. Bxc6 {[%clk 0:01:33.9]} 38... Kxc6 {[%clk 0:00:49.4]} 39.
Kg4 {[%clk 0:01:34.3]} 39... Kd7 {[%clk 0:00:43.6]} 40. Kh5 {[%clk 0:01:34.2]}
40... Ke7 {[%clk 0:00:43.5]} 41. Kg6 {[%clk 0:01:33.4]} 41... Kf8 {[%clk
0:00:43.2]} 42. Kh7 {[%clk 0:01:30.6]} 42... Kf7 {[%clk 0:00:41.5]} 43. g4
{[%clk 0:01:30.6]} 43... a5 {[%clk 0:00:40.5]} 44. Kh8 {[%clk 0:01:28.1]} 44...
g6 {[%clk 0:00:30.1]} 45. Kh7 {[%clk 0:01:15.7]} 45... gxf5 {[%clk 0:00:29.1]}
46. gxf5 {[%clk 0:01:15.3]} 46... a4 {[%clk 0:00:25.2]} 47. bxa4 {[%clk
0:01:12.6]} 47... c4 {[%clk 0:00:23]} 48. axb5 {[%clk 0:01:10.2]} 48... cxd3
{[%clk 0:00:22.2]} 49. cxd3 {[%clk 0:01:10.1]} 49... Ke7 {[%clk 0:00:22.2]} 50.
Kg7 {[%clk 0:01:10.1]} 1-0